bitfinex-derivatives/quotes_BTCF0:USTF0_20260314
["timestamp","ask_amount","ask_price","bid_price","bid_amount"]
[1773463991364,0.00013888,71127.0,71117.0,0.0014]
[1773463991961,0.042173,71125.0,71117.0,0.0014]
[1773463992267,0.042173,71125.0,71118.0,0.0014]
[1773463992961,0.042172,71126.0,71118.0,0.0014]
[1773463993966,0.00013888,71127.0,71118.0,0.0014]
[1773463994173,0.042168,71133.0,71121.0,0.09128226]
[1773463994376,0.042162,71143.0,71122.0,0.09128226]
[1773463994665,0.042163,71142.0,71129.0,0.09128226]
[1773463994870,0.042163,71141.0,71130.0,0.0014]
[1773463995358,0.09294158,71148.0,71130.0,0.043569]
[1773463996067,0.09294158,71152.0,71130.0,0.09268226]
[1773463996273,0.09294158,71158.0,71131.0,0.09128226]
[1773463996466,0.042156,71154.0,71140.0,0.042163]
[1773463996765,0.042156,71154.0,71141.0,0.0014]
[1773463996970,0.0014,71172.0,71142.0,0.0014]
[1773463997166,0.09294158,71170.0,71140.0,0.09128226]
[1773463997472,0.09294158,71174.0,71143.0,0.042161]
[1773463997673,0.09294158,71173.0,71144.0,0.09268226]
[1773463997972,0.09294158,71168.0,71144.0,0.09268226]
[1773463998168,0.09294158,71168.0,71144.0,0.09128226]
[1773463998358,0.042154,71157.0,71146.0,0.09128226]
[1773463998561,0.042154,71157.0,71147.0,0.09268226]
[1773463998769,0.042152,71159.0,71147.0,0.09268226]
[1773463999159,0.042151,71161.0,71147.0,0.13484126]
[1773463999472,0.09294158,71168.0,71147.0,0.09268226]
[1773464000269,0.09394158,71168.0,71147.0,0.0014]
[1773464000658,0.09494158,71168.0,71147.0,0.0014]
[1773464000865,0.09294158,71157.0,71147.0,0.0014]
[1773464001060,0.09294158,71157.0,71100.0,0.08616189]
[1773464001061,0.08953074,71155.0,71125.0,0.0014]
[1773464001267,0.042169,71132.0,71126.0,0.0014]
[1773464001472,0.042169,71132.0,71116.0,0.13629337]
[1773464001671,0.042171,71128.0,71116.0,0.09411637]
[1773464001971,0.042169,71130.0,71117.0,0.0014]
[1773464002166,0.042169,71130.0,71118.0,0.0014]
[1773464003272,0.042169,71130.0,71115.0,0.042178]
[1773464003472,0.08953074,71150.0,71120.0,0.042175]
[1773464003776,0.042168,71133.0,71121.0,0.0014]
[1773464003965,0.042168,71133.0,71122.0,0.0014]
[1773464004464,0.08953074,71140.0,71122.0,0.0014]
[1773464004666,0.08953074,71150.0,71122.0,0.0014]
[1773464005361,0.08953074,71150.0,71104.0,0.11514251]
[1773464005362,0.08953074,71133.0,71109.0,0.09411637]
[1773464005562,0.08953074,71133.0,71110.0,0.0014]
[1773464005765,0.08953074,71149.0,71110.0,0.11376766]
[1773464005963,0.08953074,71149.0,71110.0,0.20788403]
[1773464006281,0.042169,71131.0,71118.0,0.09411637]
[1773464006577,0.042168,71132.0,71119.0,0.09411637]
[1773464006766,0.042168,71132.0,71120.0,0.0014]
[1773464008973,0.042169,71131.0,71120.0,0.0014]
[1773464009781,0.042169,71131.0,71120.0,0.09551637]
[1773464010273,0.042169,71131.0,71120.0,0.0014]
[1773464010484,0.08953074,71154.0,71120.0,0.0014]
[1773464010781,0.08953074,71152.0,71120.0,0.0014]
[1773464010964,0.25376421,71151.0,71120.0,0.0014]
[1773464011167,0.08953074,71146.0,71120.0,0.0014]
[1773464011362,0.08953074,71144.0,71120.0,0.0014]
[1773464011570,0.04217,71130.0,71120.0,0.0014]
[1773464011970,0.042171,71129.0,71120.0,0.0014]
[1773464012475,0.042171,71128.0,71120.0,0.0014]
[1773464013580,0.042172,71127.0,71120.0,0.0014]
[1773464013777,0.08953074,71133.0,71120.0,1e-06]
[1773464013978,0.08953074,71146.0,71112.0,0.04218]
[1773464014177,0.08953074,71144.0,71113.0,0.0014]
[1773464014377,0.042172,71127.0,71113.0,0.05387367]
[1773464015479,0.08953074,71130.0,71114.0,0.0014]
[1773464015679,0.04216,71147.0,71115.0,0.0014]
[1773464015680,0.042175,71122.0,71115.0,0.0014]
[1773464015984,0.08953074,71126.0,71115.0,0.0014]
[1773464016184,0.08953074,71126.0,71106.0,0.09427272]
[1773464016380,0.042175,71121.0,71108.0,0.042182]
[1773464016775,0.042175,71121.0,71109.0,0.0014]
[1773464017175,0.042174,71123.0,71111.0,0.042181]
[1773464017787,0.042174,71123.0,71112.0,0.0014]
[1773464019985,0.042174,71123.0,71112.0,0.0024]
[1773464020588,0.042174,71123.0,71113.0,0.0014]
[1773464022088,0.042175,71121.0,71113.0,0.0014]
[1773464022288,0.08953074,71126.0,71113.0,0.0014]
[1773464022289,0.042174,71123.0,71113.0,0.0014]
[1773464022886,0.042174,71123.0,71113.0,0.0024]
[1773464023885,0.08953074,71121.0,71114.0,0.0014]
[1773464024081,0.08953074,71121.0,71110.0,0.042181]
[1773464024082,0.08953074,71121.0,71115.0,0.0014]
[1773464024283,0.08953074,71121.0,71111.0,0.042181]
[1773464024482,0.042175,71122.0,71112.0,0.0014]
[1773464025286,0.042175,71122.0,71113.0,0.001]
[1773464026290,0.042175,71122.0,71112.0,0.0014]
[1773464026789,0.042175,71122.0,71113.0,0.0014]
[1773464028083,0.042175,71121.0,71109.0,0.042182]
[1773464028285,0.08953074,71125.0,71110.0,0.0014]
[1773464028286,0.042175,71122.0,71110.0,0.0014]
[1773464028888,0.08695265,71121.0,71109.0,0.042182]
[1773464029192,0.08695265,71121.0,71110.0,0.0014]
[1773464029395,0.08695265,71126.0,71110.0,0.0014]
[1773464031088,0.042174,71122.0,71110.0,0.0014]
[1773464032493,0.042175,71121.0,71110.0,0.0014]
[1773464032995,0.042176,71120.0,71110.0,0.0014]
[1773464036303,0.09156543,71119.0,71110.0,0.0014]
[1773464036502,0.09156543,71114.0,71095.0,0.08626918]
[1773464036696,0.07785188,71114.0,71096.0,0.10964602]
[1773464036896,0.07785188,71114.0,71097.0,0.02197684]
[1773464037198,0.09156543,71127.0,71101.0,0.042186]
[1773464037403,0.09156543,71125.0,71101.0,0.042186]
[1773464037604,0.09156543,71125.0,71101.0,0.08626918]
[1773464037798,0.09156543,71125.0,71108.0,0.042182]
[1773464037997,0.09156543,71125.0,71109.0,0.0014]
[1773464039203,0.09156543,71125.0,71110.0,0.0014]
[1773464040007,0.042175,71121.0,71110.0,0.0014]
[1773464040312,0.09156543,71125.0,71110.0,0.0014]
[1773464040313,0.13374143,71120.0,71110.0,0.0014]
[1773464041905,0.042174,71122.0,71110.0,0.0014]
[1773464042097,0.09156543,71131.0,71110.0,0.0744119]
[1773464042402,0.042167,71134.0,71120.0,0.042175]
[1773464042603,0.09156543,71134.0,71121.0,0.0014]
[1773464042794,0.04217,71130.0,71121.0,0.0014]
[1773464042995,0.09156543,71156.0,71123.0,0.08626918]
[1773464043201,0.042145,71172.0,71130.0,0.0730119]
[1773464043202,0.042163,71142.0,71130.0,0.0730119]
[1773464043399,0.09156543,71145.0,71123.0,0.08626918]
[1773464043697,0.042152,71161.0,71108.0,0.4204697]
[1773464043698,0.09156543,71131.0,71116.0,0.042178]
[1773464043900,0.13373543,71130.0,71117.0,0.0014]
[1773464044507,0.13373543,71130.0,71118.0,0.0014]
[1773464044894,0.13373543,71130.0,71116.0,0.042178]
[1773464045097,0.09156543,71142.0,71117.0,0.0014]
[1773464045296,0.09156543,71133.0,71119.0,0.042176]
[1773464046208,0.09156543,71138.0,71120.0,0.042175]
[1773464046407,0.042167,71134.0,71120.0,0.042175]
[1773464047107,0.09156543,71133.0,71114.0,8.2e-07]
[1773464047409,0.13374043,71121.0,71115.0,0.0014]
[1773464047610,0.09156543,71120.0,71116.0,0.0014]
[1773464047809,0.09156543,71120.0,71117.0,0.0014]
[1773464048000,0.09156543,71120.0,71118.0,0.0014]
[1773464048200,0.09156543,71120.0,71119.0,0.0014]
[1773464049303,0.09156543,71120.0,71108.0,0.042182]
[1773464049509,0.09156543,71120.0,71115.0,0.00279999]
[1773464049806,0.09156543,71120.0,71116.0,0.0014]
[1773464051110,0.09156543,71124.0,71116.0,0.0014]
[1773464051310,0.042171,71128.0,71119.0,0.00279999]
[1773464052018,0.04217,71130.0,71119.0,0.00279999]
[1773464052220,0.042171,71128.0,71119.0,0.00279999]
[1773464052705,0.09156543,71132.0,71119.0,0.00279999]
[1773464053102,0.04217,71130.0,71119.0,0.00279999]
[1773464054210,0.04217,71129.0,71119.0,0.00279999]
[1773464054711,0.04217,71130.0,71119.0,0.00279999]
[1773464054913,0.04217,71129.0,71119.0,0.00279999]
[1773464056018,0.042169,71131.0,71119.0,0.00279999]
[1773464056503,0.042169,71131.0,71116.0,0.0014]
[1773464056708,0.042169,71131.0,71119.0,0.042176]
[1773464057206,0.042148,71167.0,71124.0,0.00279999]
[1773464057406,0.09156543,71144.0,71125.0,0.0014]
[1773464057612,0.09156543,71144.0,71126.0,0.0014]
[1773464057796,0.09156543,71144.0,71123.0,0.042173]
[1773464057998,0.09156543,71156.0,71124.0,0.043573]
[1773464058198,0.042163,71141.0,71131.0,0.00279999]
[1773464058405,0.042164,71139.0,71132.0,0.0014]
[1773464058604,0.042164,71139.0,71133.0,0.0014]
[1773464058804,0.042164,71139.0,71134.0,0.0014]
[1773464059000,0.09156543,71156.0,71135.0,0.0014]
[1773464059208,0.042166,71137.0,71136.0,0.0014]
[1773464059412,0.042166,71136.0,71117.0,0.08626918]
[1773464059712,0.042166,71136.0,71118.0,0.0014]
[1773464059908,0.042166,71136.0,71118.0,0.34191128]
[1773464060105,0.09156543,71137.0,71124.0,0.042173]
[1773464060303,0.09156543,71137.0,71125.0,0.043572]
[1773464060604,0.042167,71135.0,71117.0,0.08626918]
[1773464060913,0.042166,71136.0,71124.0,0.042173]
[1773464061116,0.042166,71136.0,71125.0,0.0014]
[1773464061305,0.09032179,71150.0,71126.0,0.0014]
[1773464061606,0.09032179,71148.0,71127.0,0.0014]
[1773464061807,0.09032179,71148.0,71128.0,0.0014]
[1773464062014,0.09032179,71150.0,71129.0,0.0014]
[1773464062214,0.21195946,71149.0,71130.0,0.0014]
[1773464062405,0.09032179,71148.0,71110.0,0.09476017]
[1773464062612,0.09032179,71133.0,71121.0,0.042175]
[1773464062817,0.09032179,71133.0,71110.0,0.11242929]
[1773464062818,0.09032179,71133.0,71122.0,0.043574]
[1773464063015,0.042166,71137.0,71124.0,0.042173]
[1773464063212,0.09032179,71136.0,71125.0,0.0014]
[1773464063607,0.13248779,71136.0,71125.0,0.0014]
[1773464063803,0.042166,71136.0,71125.0,0.0014]
[1773464066814,0.042167,71135.0,71125.0,0.0014]
[1773464068217,0.09032179,71135.0,71115.0,0.09476017]
[1773464068411,0.09032179,71135.0,71116.0,0.0014]
[1773464068611,0.042168,71133.0,71121.0,0.042174]
[1773464070520,0.042168,71133.0,71122.0,0.042174]
[1773464070719,0.042168,71133.0,71123.0,0.0014]
[1773464071925,0.09032179,71135.0,71122.0,0.042174]
[1773464072112,0.09032179,71135.0,71123.0,0.0014]
[1773464072417,0.09032179,71135.0,71123.0,0.043573]
[1773464073019,0.09032179,71135.0,71124.0,0.042172]
[1773464073515,0.09032179,71135.0,71125.0,0.042172]
[1773464073727,0.042166,71136.0,71125.0,0.042172]
[1773464075520,0.042165,71138.0,71126.0,0.042172]
[1773464075722,0.11515522,71140.0,71127.0,0.042171]
[1773464076021,0.042164,71139.0,71127.0,0.042171]
[1773464076912,0.09013034,71143.0,71128.0,0.04217]
[1773464077110,0.11654322,71160.0,71126.0,0.042171]
[1773464077111,0.042165,71138.0,71126.0,0.042171]
[1773464079615,0.042165,71138.0,71127.0,0.042171]
[1773464080120,0.09013034,71137.0,71127.0,0.042171]
[1773464082322,0.09013034,71134.0,71097.0,0.41485496]
[1773464082522,0.07298708,71110.0,71098.0,0.0014]
[1773464082718,0.09013034,71109.0,71099.0,0.0014]
[1773464082918,0.09013034,71109.0,71100.0,0.0014]
[1773464083123,0.09013034,71109.0,71101.0,0.0014]
[1773464083322,0.09013034,71105.0,71084.0,0.09169488]
[1773464083527,0.07298708,71100.0,71088.0,0.042194]
[1773464083828,0.09013034,71103.0,71088.0,0.042194]
[1773464084027,0.07298708,71100.0,71088.0,0.042194]
[1773464084223,0.09013034,71103.0,71088.0,0.042194]
[1773464084724,0.09013034,71097.0,71081.0,0.00070342]
[1773464084927,0.13232334,71090.0,71071.0,0.0423368]
[1773464085223,0.09013034,71095.0,71073.0,0.09169488]
[1773464085428,0.05427682,71129.0,71085.0,0.042196]
[1773464085429,0.09013034,71107.0,71085.0,0.042196]
[1773464085632,0.09013034,71107.0,71086.0,0.0014]
[1773464086127,0.13231634,71102.0,71086.0,0.0014]
[1773464086328,0.08743794,71101.0,71086.0,0.0014]
[1773464086631,0.08743794,71099.0,71086.0,0.0014]
[1773464087023,0.05427682,71129.0,71087.0,0.08403988]
[1773464087222,0.12961694,71115.0,71087.0,0.08403988]
[1773464087629,0.04218,71113.0,71093.0,0.042191]
[1773464087824,0.12961794,71113.0,71093.0,0.042191]
[1773464088130,0.042181,71111.0,71093.0,0.042191]
[1773464088430,0.08743794,71110.0,71094.0,0.0014]
[1773464089224,0.08743794,71110.0,71093.0,0.042191]
[1773464089425,0.08743794,71110.0,71094.0,0.0014]
[1773464089939,0.08743794,71110.0,71095.0,0.04219]
[1773464090731,0.001,71115.0,71100.0,0.042187]
[1773464090928,0.001,71115.0,71098.0,0.08403988]
[1773464091234,0.042175,71121.0,71104.0,0.042185]
[1773464091432,0.1334166,71124.0,71105.0,0.0014]
[1773464091630,0.1334166,71124.0,71105.0,0.09012476]
[1773464092631,0.0912436,71119.0,71104.0,0.042185]
[1773464092825,0.0912436,71119.0,71105.0,0.0014]
[1773464093636,0.0912436,71128.0,71091.0,0.08872476]
[1773464093832,0.042176,71119.0,71103.0,0.042185]
[1773464094031,0.042176,71119.0,71104.0,0.0014]
[1773464094427,0.0932436,71121.0,71104.0,0.0014]
[1773464094632,0.0922436,71121.0,71107.0,0.042183]
[1773464094831,0.0912436,71121.0,71107.0,0.042183]
[1773464095829,0.0912436,71126.0,71104.0,0.09012476]
[1773464096243,0.042173,71124.0,71110.0,0.042181]
[1773464096752,0.042174,71122.0,71107.0,0.042183]
[1773464098554,0.042175,71121.0,71107.0,0.042183]
[1773464099756,0.042174,71123.0,71104.0,0.09012476]
[1773464100055,0.042175,71122.0,71105.0,0.08872476]
[1773464100363,0.042175,71121.0,71107.0,0.042183]
[1773464100856,0.042175,71121.0,71108.0,0.08872476]
[1773464101053,0.042173,71124.0,71109.0,0.08872476]
[1773464101243,0.00070293,71131.0,71112.0,0.04218]
[1773464101448,0.0912436,71130.0,71113.0,0.0014]
[1773464101849,0.042173,71124.0,71113.0,0.0014]
[1773464102448,0.00070293,71131.0,71113.0,0.0014]
[1773464102648,0.042158,71150.0,71118.0,0.042176]
[1773464102649,0.0912436,71133.0,71118.0,0.042176]
[1773464102854,0.042169,71132.0,71113.0,0.08872476]
[1773464103155,0.0912436,71131.0,71118.0,0.042176]
[1773464103361,0.1334126,71131.0,71118.0,0.042176]
[1773464103556,0.04217,71130.0,71116.0,0.042178]
[1773464103752,0.0912436,71131.0,71117.0,0.0014]
[1773464103954,0.0912436,71131.0,71118.0,0.0014]
[1773464104149,0.0912436,71131.0,71110.0,0.08872476]
[1773464104360,0.0912436,71131.0,71111.0,0.0014]
[1773464104960,0.04217,71129.0,71115.0,0.042178]
[1773464105559,0.04217,71129.0,71111.0,0.0014]
[1773464105560,0.042169,71131.0,71113.0,0.08872476]
[1773464105752,0.04217,71129.0,71116.0,0.042177]
[1773464106256,0.042171,71128.0,71116.0,0.042177]
[1773464106562,0.042171,71128.0,71117.0,0.0014]
[1773464108055,0.04217,71130.0,71118.0,0.042176]
[1773464108966,0.04217,71130.0,71117.0,0.0014]
[1773464109267,0.04217,71129.0,71117.0,0.0014]
[1773464109966,0.042171,71128.0,71117.0,0.0014]
[1773464111767,0.042171,71128.0,71118.0,0.0014]
[1773464115673,0.0912436,71146.0,71123.0,0.08872476]
[1773464115863,0.07300414,71133.0,71114.0,0.08872476]
[1773464116170,0.04217,71129.0,71115.0,0.0014]
[1773464116469,0.0912436,71132.0,71116.0,0.0014]
[1773464116670,0.16424774,71130.0,71117.0,0.0014]
[1773464116869,0.16424774,71130.0,71118.0,0.0014]
[1773464117267,0.042172,71126.0,71118.0,0.0014]
[1773464117471,0.042172,71126.0,71119.0,0.0014]
[1773464117862,0.042171,71128.0,71119.0,0.0014]
[1773464118878,0.042172,71127.0,71115.0,0.042178]
[1773464119075,0.042172,71127.0,71116.0,0.0014]
[1773464119467,0.042172,71127.0,71117.0,0.0014]
[1773464119977,0.042172,71127.0,71118.0,0.0014]
[1773464120274,0.1334136,71129.0,71118.0,0.0014]
[1773464120474,0.042171,71128.0,71119.0,0.0014]
[1773464120676,0.1334146,71128.0,71119.0,0.0014]
[1773464121271,0.1334146,71128.0,71115.0,0.042178]
[1773464121469,0.1334146,71128.0,71116.0,0.0014]
[1773464121876,0.1334146,71128.0,71117.0,0.0014]
[1773464122482,0.1334146,71128.0,71119.0,0.001]
[1773464122864,0.042171,71127.0,71116.0,0.042177]
[1773464123377,0.042171,71127.0,71117.0,0.0014]
[1773464123876,0.042171,71127.0,71116.0,0.042177]
[1773464124078,0.042171,71127.0,71117.0,0.0014]
[1773464124978,0.04217,71129.0,71117.0,0.0014]
[1773464125177,0.04217,71129.0,71117.0,0.043577]
[1773464125378,0.04217,71129.0,71118.0,0.042176]
[1773464126775,0.04217,71129.0,71117.0,0.0014]
[1773464131084,0.04217,71129.0,71117.0,0.043577]
[1773464140878,0.04217,71129.0,71118.0,0.0014]
[1773464144998,0.04217,71129.0,71117.0,0.042177]
[1773464145184,0.04217,71129.0,71118.0,0.043576]
[1773464145383,0.04217,71129.0,71119.0,0.0014]
[1773464147590,0.042169,71131.0,71119.0,0.043576]
[1773464147786,0.04217,71130.0,71119.0,0.043576]
[1773464152891,0.04217,71129.0,71119.0,0.0014]
[1773464153990,0.04217,71129.0,71117.0,0.042177]
[1773464154185,0.04217,71129.0,71120.0,0.0014]
[1773464154593,0.04217,71129.0,71121.0,0.0014]
[1773464155198,0.04217,71129.0,71118.0,0.042176]
[1773464155498,0.11517148,71130.0,71119.0,0.0014]
[1773464155690,0.11517148,71130.0,71118.0,0.042176]
[1773464155891,0.11517148,71130.0,71119.0,0.0014]
[1773464156086,0.08049505,71128.0,71103.0,0.08489784]
[1773464156289,0.042181,71112.0,71091.0,0.08489784]
[1773464156494,0.11518348,71110.0,71092.0,0.08629784]
[1773464156691,0.042182,71109.0,71096.0,0.042189]
[1773464156896,0.042182,71109.0,71097.0,0.0014]
[1773464157088,0.042182,71109.0,71097.0,0.043589]
[1773464157292,0.07300148,71110.0,71097.0,0.043589]
[1773464157988,0.19567853,71110.0,71097.0,0.043589]
[1773464158199,0.19567853,71110.0,71097.0,0.042189]
[1773464158401,0.042185,71105.0,71091.0,0.11094392]
[1773464158598,0.042183,71107.0,71092.0,0.0014]
[1773464158900,0.042183,71107.0,71092.0,0.12719316]
[1773464160007,0.042183,71107.0,71094.0,0.042191]
[1773464160200,0.042182,71109.0,71095.0,0.04219]
[1773464160503,0.042183,71108.0,71095.0,0.04219]
[1773464161500,0.08049505,71106.0,71081.0,0.08489784]
[1773464161705,0.08049505,71106.0,71092.0,0.042192]
[1773464162008,0.042185,71104.0,71093.0,0.0014]
[1773464162196,0.12268005,71104.0,71094.0,0.0014]
[1773464162396,0.08049505,71103.0,71083.0,0.08489784]
[1773464162601,0.08049505,71103.0,71084.0,0.0014]
[1773464162801,0.12268105,71103.0,71090.0,0.042193]
[1773464163106,0.12268105,71103.0,71091.0,0.0014]
[1773464164507,0.042187,71101.0,71092.0,0.0014]
[1773464164706,0.042187,71101.0,71089.0,0.042193]
[1773464164905,0.042187,71101.0,71093.0,0.0014]
[1773464165105,0.12268205,71101.0,71089.0,0.042193]
[1773464165298,0.08049505,71100.0,71090.0,0.00125901]
[1773464165707,0.08049505,71100.0,71091.0,0.0014]
[1773464166109,0.08049505,71100.0,71089.0,0.02076959]
[1773464166409,0.08049505,71100.0,71090.0,0.0014]
[1773464166712,0.08049505,71100.0,71089.0,0.02076959]
[1773464166911,0.08049505,71100.0,71091.0,0.0014]
[1773464167409,0.042188,71099.0,71086.0,0.042195]
[1773464167606,0.042188,71099.0,71087.0,0.0014]
[1773464168308,0.08049505,71100.0,71087.0,0.0014]
[1773464168309,0.042189,71098.0,71087.0,0.0014]
[1773464170210,0.04219,71096.0,71087.0,0.0014]
[1773464170412,0.08049505,71099.0,71088.0,0.0014]
[1773464170707,0.12268705,71093.0,71089.0,0.0014]
[1773464171013,0.042192,71093.0,71075.0,0.08489784]
[1773464171212,0.04219,71095.0,71076.0,0.08629784]
[1773464171412,0.04219,71095.0,71076.0,0.55568031]
[1773464171716,0.07300148,71090.0,71076.0,0.07415548]
[1773464171910,0.07300148,71090.0,71077.0,0.0014]
[1773464172213,0.11519448,71090.0,71077.0,0.043601]
[1773464172405,0.042194,71089.0,71077.0,0.0014]
[1773464172600,0.042195,71087.0,71075.0,0.042202]
[1773464172804,0.08049505,71088.0,71071.0,0.0001328]
[1773464173114,0.08049505,71088.0,71072.0,0.0014]
[1773464173715,0.08049505,71088.0,71073.0,0.0014]
[1773464174015,0.042196,71085.0,71073.0,0.0014]
[1773464174611,0.08049505,71084.0,71071.0,0.0423368]
[1773464174911,0.07300148,71081.0,71072.0,0.0014]
[1773464175110,0.08049505,71082.0,71071.0,0.0423368]
[1773464175317,0.08049505,71082.0,71073.0,0.0014]
[1773464175816,0.042196,71085.0,71073.0,0.0014]
[1773464176014,0.08049505,71084.0,71081.0,0.00070342]
[1773464176317,0.08049505,71084.0,71082.0,0.0014]
[1773464176517,0.08049505,71084.0,71083.0,0.0014]
[1773464176717,0.08049505,71089.0,71050.0,0.0014]
[1773464176916,0.042189,71097.0,71050.0,0.33026044]
[1773464176917,0.07300148,71070.0,71050.0,0.33026044]
[1773464177213,0.15349653,71070.0,71062.0,0.0014]
[1773464177517,0.15349653,71070.0,71041.0,0.00070375]
[1773464177518,0.12270805,71058.0,71051.0,0.0014]
[1773464177713,0.0001328,71057.0,71052.0,0.0014]
[1773464177909,0.0001328,71057.0,71053.0,0.0014]
[1773464178108,0.08049505,71067.0,71054.0,0.0014]
[1773464178313,0.08049505,71067.0,71055.0,0.0014]
[1773464178716,0.08049505,71064.0,71056.0,0.0014]
[1773464178915,0.08049505,71064.0,71057.0,0.0014]
[1773464179216,0.08049505,71064.0,71058.0,0.0014]
[1773464179513,0.08049505,71063.0,71059.0,0.0014]
[1773464179718,0.08049505,71063.0,71060.0,0.0014]
[1773464180023,0.12270205,71067.0,71060.0,0.0014]
[1773464180205,0.08049505,71067.0,71061.0,0.0014]
[1773464180409,0.08049505,71067.0,71062.0,0.0014]
[1773464181005,0.07300148,71070.0,71062.0,0.0014]
[1773464181205,0.08078189,71077.0,71063.0,0.0084]
[1773464181413,0.08078189,71082.0,71063.0,0.0084]
[1773464181620,0.07300148,71080.0,71066.0,0.042207]
[1773464182020,0.08078189,71079.0,71066.0,0.042207]
[1773464182421,0.08078189,71079.0,71055.0,0.07953141]
[1773464182619,0.08078189,71075.0,71062.0,0.0084]
[1773464182919,0.08078189,71080.0,71067.0,0.042207]
[1773464183116,0.15378337,71080.0,71068.0,0.0014]
[1773464183419,0.08078189,71079.0,71068.0,0.0014]
[1773464183609,0.08078189,71079.0,71042.0,0.10909516]
[1773464183807,0.08078189,71075.0,71051.0,0.07953141]
[1773464184024,0.08078189,71075.0,71052.0,0.08093141]
[1773464184417,0.08078189,71075.0,71061.0,0.0084]
[1773464184615,0.08078189,71075.0,71062.0,0.0014]
[1773464184814,0.12298489,71075.0,71062.0,0.0014]
[1773464185018,0.08078189,71074.0,71063.0,0.0014]
[1773464185214,0.08078189,71074.0,71064.0,0.0014]
[1773464185415,0.08078189,71072.0,71058.0,0.0014]
[1773464186822,0.07300148,71070.0,71058.0,0.0014]
[1773464187023,0.07300148,71070.0,71061.0,0.04221]
[1773464187616,0.08078189,71069.0,71061.0,0.04221]
[1773464188022,0.07300148,71070.0,71061.0,0.04221]
[1773464188325,0.08078189,71074.0,71061.0,0.04221]
[1773464188524,0.08078189,71074.0,71063.0,0.042209]
[1773464188722,0.08078189,71079.0,71058.0,0.0014]
[1773464188920,0.08078189,71079.0,71058.0,0.08093141]
[1773464189121,0.12297989,71083.0,71068.0,0.042206]
[1773464189318,0.07300148,71080.0,71069.0,0.0014]
[1773464190619,0.15378337,71080.0,71069.0,0.0014]
[1773464191530,0.08078189,71079.0,71069.0,0.0014]
[1773464191924,0.07300148,71080.0,71069.0,0.0098]
[1773464192128,0.042198,71083.0,71069.0,0.0098]
[1773464192631,0.12297989,71083.0,71069.0,0.0098]
[1773464192826,0.12297689,71087.0,71074.0,0.042203]
[1773464193030,0.042197,71084.0,71069.0,0.0098]
[1773464193233,0.07300148,71080.0,71069.0,0.0098]
[1773464193433,0.07300148,71080.0,71070.0,0.042205]
[1773464193632,0.15378337,71080.0,71069.0,0.0098]
[1773464193929,0.15378337,71080.0,71069.0,0.052005]
[1773464194638,0.15378337,71080.0,71070.0,0.042205]
[1773464195133,0.15378337,71080.0,71069.0,0.0098]
[1773464195527,0.08078189,71079.0,71071.0,0.042204]
[1773464195833,0.08078189,71079.0,71069.0,0.052006]
[1773464196334,0.08078189,71079.0,71070.0,0.042205]
[1773464196634,0.08078189,71079.0,71069.0,0.0098]
[1773464197236,0.08078189,71079.0,71070.0,0.042205]
[1773464197535,0.08078189,71079.0,71069.0,0.0098]
[1773464197926,0.08078189,71079.0,71070.0,0.042205]
[1773464198128,0.08078189,71079.0,71069.0,0.0098]
[1773464199035,0.08078189,71079.0,71070.0,0.042205]
[1773464199937,0.08078189,71079.0,71069.0,0.0098]
[1773464200529,0.08078189,71079.0,71069.0,0.0014]
[1773464200925,0.08078189,71079.0,71070.0,0.042205]
[1773464201133,0.07300148,71080.0,71069.0,0.0014]
[1773464201333,0.08078189,71089.0,71069.0,0.0014]
[1773464201541,0.21662755,71088.0,71071.0,0.0084]
[1773464201739,0.08078189,71089.0,71071.0,0.0084]
[1773464201939,0.21662778,71088.0,71071.0,0.0084]
[1773464202136,0.12297389,71093.0,71080.0,0.042199]
[1773464202344,0.08078189,71094.0,71081.0,0.0014]
[1773464202547,0.07309589,71090.0,71083.0,0.042197]
[1773464202734,0.07309589,71090.0,71084.0,0.0014]
[1773464203237,0.08078189,71094.0,71084.0,0.043597]
[1773464203434,0.08078189,71094.0,71084.0,0.0014]
[1773464204034,0.12297289,71094.0,71084.0,0.0014]
[1773464204342,0.11528689,71094.0,71084.0,0.0098]
[1773464204544,0.19606878,71094.0,71084.0,0.0098]
[1773464204734,0.12297289,71094.0,71084.0,0.0098]
[1773464205636,0.12297289,71094.0,71084.0,0.0014]
[1773464207444,0.19606878,71094.0,71084.0,0.0014]
[1773464208333,0.042191,71095.0,71084.0,0.0014]
[1773464208537,0.08477416,71094.0,71084.0,0.0098]
[1773464209842,0.08477416,71093.0,71085.0,0.0014]
[1773464210046,0.07309589,71100.0,71073.0,0.042203]
[1773464210047,0.08477416,71084.0,71073.0,0.042203]
[1773464210245,0.07309589,71083.0,71074.0,0.043602]
[1773464210448,0.08477416,71084.0,71075.0,0.0014]
[1773464210640,0.08477416,71084.0,71076.0,0.0014]
[1773464211641,0.12701889,71088.0,71076.0,0.0014]
[1773464213042,0.12701889,71088.0,71076.0,0.043601]
[1773464214549,0.042195,71087.0,71076.0,0.043601]
[1773464218544,0.08482389,71085.0,71076.0,0.0014]
[1773464218851,0.08482389,71085.0,71063.0,0.08531477]
[1773464218852,0.08482389,71085.0,71077.0,0.0014]
[1773464219147,0.08482389,71085.0,71078.0,0.0014]
[1773464219350,0.08482389,71085.0,71079.0,0.0014]
[1773464219951,0.042198,71083.0,71079.0,0.0014]
[1773464220149,0.07309589,71082.0,71079.0,0.0014]
[1773464221345,0.15791978,71082.0,71072.0,0.042204]
[1773464221550,0.15791978,71082.0,71077.0,0.0014]
[1773464221749,0.08482389,71082.0,71077.0,0.0014]
[1773464221953,0.042196,71085.0,71077.0,0.0014]
[1773464222355,0.042196,71085.0,71074.0,0.042202]
[1773464222557,0.042197,71084.0,71077.0,0.0014]
[1773464222757,0.08482389,71086.0,71077.0,0.0014]
[1773464223058,0.07309589,71080.0,71077.0,0.0014]
[1773464223754,0.07309589,71080.0,71063.0,0.08531477]
[1773464223959,0.11529489,71080.0,71069.0,0.042205]
[1773464224555,0.11529489,71080.0,71070.0,0.0014]
[1773464224855,0.11529589,71080.0,71071.0,0.0014]
[1773464225056,0.11529589,71080.0,71072.0,0.0014]
[1773464225244,0.20011978,71080.0,71073.0,0.0014]